Cogmind - Beta 13 @@@ ROGUE MODE // 2024.04.01 @ 14:51:30 Player: sportsracer48 Result: Destroyed by S-27 Virus with Autogun Performance ------------- Evolutions (6) 3000 Regions Visited (8) 1600 Robots Destroyed (20) 100 Value Destroyed (391) 391 Prototype IDs (3) 60 Alien Tech Used (0) 0 Bonus (500) 500 TOTAL SCORE: 5651 Bonus ------- Entered DSFs 500 Cogmind --------- Core Integrity 0/1150 Matter 29/300 Energy 99/100 System Corruption 3% Temperature Cool (0) Movement Core (50) Location -4/Factory Parts ------- > --- POWER (2) -------- (None) > --- PROPULSION (6) --- (None) > --- UTILITY (8) ------ Improved Terrain Scan Processor > --- WEAPON (3) ------- (None) > --- INVENTORY (5) ---- Improved Titanium Leg Medium Matter Pod (0) Gatling Laser Gatling Laser Proton Cannon Peak State ------------ > --- POWER ------------ Light Angular Momentum Engine > --- PROPULSION ------- Gravmag System Gravmag System Gravmag System Improved Gravmag System Improved Gravmag System Improved Gravmag System > --- UTILITY ---------- Power Amplifier Advanced Signal Interpreter Improved Terrain Scan Processor Seismic Detector Reaction Control System > --- WEAPON ----------- Gatling Laser Gatling Laser Proton Cannon > --- INVENTORY -------- Improved Titanium Leg Medium Matter Pod [Rating: 62] Favorites ----------- Power Light Ion Engine Engine Light Ion Engine Power Core Improved Fusion Compressor Propulsion Flight Unit Leg Aluminum Leg Hover Unit Improved Gravmag System Flight Unit Flight Unit Utility Seismic Detector Device Seismic Detector Storage Medium Matter Pod Processor Improved Terrain Scan Processor Hackware Hacking Suite Protection Weapon Shielding Weapon EM Pulse Gun Energy Gun EM Pulse Gun Energy Cannon Beam Cannon Ballistic Gun Light Assault Rifle Ballistic Cannon Heavy Mass Driver Launcher Advanced Concussive RPG Special Weapon Mining Laser Slashing Weapon Mining Claw Build | -11 -10 -9 -8 -7 -6 -5 -5 -4 ------- Run | Yrd Mat Mat Mat Fac Fac Fac DSF Fac Slots Evolved 12 | . . 2 2 2 2 2 . 2 Power 1 | . . . . . 1 . . . Propulsion 4 | . . 1 . 2 . 1 . . Utility 6 | . . 1 2 . . 1 . 2 Weapon 1 | . . . . . 1 . . . Parts Attached 81 | 7 18 3 13 6 16 2 11 5 Power 5 | 1 2 . . . 1 . . 1 Engine 4 | 1 2 . . . 1 . . . Core 1 | . . . . . . . . 1 Reactor . | . . . . . . . . . Propulsion 23 | 2 4 2 1 3 7 1 . 3 Treads . | . . . . . . . . . Leg 9 | 2 2 . . 2 . . . 3 Wheel . | . . . . . . . . . Hover 6 | . . . . . 5 1 . . Flight 8 | . 2 2 1 1 2 . . . Utility 29 | 2 8 . 9 1 7 1 . 1 Device 16 | 2 5 . 2 1 4 1 . 1 Storage 4 | . 3 . . . 1 . . . Processor 4 | . . . 2 . 2 . . . Hackware 2 | . . . 2 . . . . . Protection 3 | . . . 3 . . . . . Artifact . | . . . . . . . . . Weapon 24 | 2 4 1 3 2 1 . 11 . Energy Gun 7 | 1 1 . 1 1 1 . 2 . Energy Cannon 3 | . 1 . . . . . 2 . Ballistic Gun 3 | 1 1 . 1 . . . . . Ballistic Cannon 1 | . . . . . . . 1 . Launcher 6 | . . . . . . . 6 . Special Weapon 2 | . 1 1 . . . . . . Impact Weapon . | . . . . . . . . . Slashing Weapon 2 | . . . 1 1 . . . . Piercing Weapon . | . . . . . . . . . Special Melee Weapon . | . . . . . . . . . Unidentified Prototypes 3 | . . . 1 2 . . . . Parts Lost 27 | . 2 1 6 . . . 12 6 Power 3 | . . . 1 . . . 1 1 Propulsion 11 | . . 1 1 . . . 6 3 Utility 8 | . . . 3 . . . 3 2 Weapon 5 | . 2 . 1 . . . 2 . Highest Loss Streak 12 | . 1 1 3 . . . 12 6 To Critical Strikes . | . . . . . . . . . Average Slot Usage (%) 76 | . 95 82 92 41 45 76 58 13 Engine 8 | . 14 11 6 . 3 5 3 . Leg 7 | . 22 . . 8 4 . . 1 Hover 3 | . . . . . 9 35 23 . Flight 13 | . 5 32 26 6 3 . . . Device 17 | . 23 22 21 6 6 17 10 1 Storage 1 | . 3 . . . . . . . Processor 4 | . . . 6 . 9 11 11 8 Hackware 1 | . . . 3 2 . . . . Protection 2 | . . . 9 2 . . . . Energy Gun 7 | . 16 . 6 3 4 5 4 . Energy Cannon 2 | . 2 11 . . . . 1 . Ballistic Gun 1 | . 4 . 1 2 . . . . Special Weapon 2 | . 1 6 6 . . . . . Naked Turns . | . . . . . . . . . Heaviest Build 28 | 8 9 9 12 8 13 14 28 10 Greatest Support 57 | 20 20 12 12 40 48 57 57 45 Greatest Overweight (x) 3 | . . . 2 . 2 . . 3 Average Overweight (x) . | . . . . . . . . . Largest Inventory Capacity 5 | 5 5 5 5 5 5 5 5 5 Average Capacity 5 | 5 5 5 5 5 5 5 5 5 Most Carried 5 | 1 5 5 5 5 5 3 5 5 Average Carried 3 | . 3 4 4 4 3 2 3 5 Final Capacity 5 | 5 5 5 5 5 5 5 5 5 Final Carried 5 | . 5 4 5 3 4 2 5 5 Class Distribution -------------------- 61% | Mutant 38% | Scavenger-Mutant Dominant Class ---------------- Mutant | -10/Materials Scavenger-Mutant | -9/Materials Scavenger-Mutant | -8/Materials Mutant | -7/Factory Mutant | -6/Factory Mutant | -5/Factory Mutant | -5/DSF Mutant | -4/Factory Resources | -11 -10 -9 -8 -7 -6 -5 -5 -4 ----------- Run | Yrd Mat Mat Mat Fac Fac Fac DSF Fac Matter Collected 697 | 264 212 25 110 . . . 86 . Remotely . | . . . . . . . . . Salvage Created 694 | 106 315 53 53 . . . 167 . Parts 47 | 5 26 . 6 . . . 10 . Haulers Intercepted . | . . . . . . . . . Recyclers Shooed 2 | . . . . 2 . . . . Parts Field Recycled . | . . . . . . . . . Retrieved Matter . | . . . . . . . . . Parts Self-Destructed . | . . . . . . . . . Prevented . | . . . . . . . . . Kills | -11 -10 -9 -8 -7 -6 -5 -5 -4 ------- Run | Yrd Mat Mat Mat Fac Fac Fac DSF Fac Combat Hostiles Destroyed 13 | . 9 1 2 . . . 1 . Guns 11 | . 9 . 2 . . . . . AOE 1 | . . . . . . . 1 . Classes Destroyed 9 | 2 3 1 2 . . . 1 . Builder 1 | . . . 1 . . . . . Tunneler 2 | 1 1 . . . . . . . Recycler 1 | 1 . . . . . . . . Operator 1 | . . . 1 . . . . . Watcher 2 | . 2 . . . . . . . Swarmer 8 | . 6 . 2 . . . . . Grunt 3 | . 3 . . . . . . . Sentry 1 | . . 1 . . . . . . Heavy 1 | . . . . . . . 1 . Best Kill Streak 3 | 2 3 1 2 . . . 1 . Combat Bots Only 3 | . 3 1 2 . . . 1 . Max Kills in Single Turn 2 | 1 2 1 1 . . . 1 . Gunslinging 1 | . 1 . . . . . . . Exploded 1 | . . . . . . . 1 . Melee . | . . . . . . . . . Uniques/NPCs Destroyed . | . . . . . . . . . Combat | -11 -10 -9 -8 -7 -6 -5 -5 -4 -------- Run | Yrd Mat Mat Mat Fac Fac Fac DSF Fac Hostile Shots Fired 428 | . 38 14 81 . 33 . 113 149 Missed 166 | . 9 7 36 . 17 . 54 43 Damage Taken 3944 | . 248 105 518 . 112 . 1272 1689 Core 1824 | . 41 46 124 . 5 . 452 1156 Absorbed by Shields . | . . . . . . . . . Redirected to Shielding 69 | . . . 69 . . . . . Core Remaining (%) 85 | 100 83 88 77 100 99 . 54 . Volleys Fired 102 | 4 28 18 28 11 3 . 10 . Largest 3 | 2 2 1 1 1 1 . 3 . Hottest 235 | 60 80 100 100 61 61 . 235 . Shots Fired 130 | 8 47 18 28 11 3 . 15 . Gun 91 | 8 47 . 17 11 3 . 5 . Cannon 20 | . . 12 4 . . . 4 . Launcher 6 | . . . . . . . 6 . Special 13 | . . 6 7 . . . . . Kinetic 37 | 4 6 . 17 9 . . 1 . Thermal 39 | . . 18 11 2 3 . 5 . Explosive 6 | . . . . . . . 6 . Electromagnetic 48 | 4 41 . . . . . 3 . Robot Hit Streak 12 | 6 6 3 3 2 . . 12 . Robot Miss Streak 4 | . 3 3 4 3 . . 3 . Penetration Max . | . . . . . . . . . Secondary Targets 1 | . 1 . . . . . . . Max Gunslinging Chain 1 | . 1 . . . . . . . Shots Hit Robots 61 | 6 25 6 9 4 . . 11 . Core Hits 42 | 3 13 1 5 1 . . 19 . Critical Kills 1 | . . 1 . . . . . . Critical Parts Destroyed . | . . . . . . . . . Critical Strikes 1 | . . 1 . . . . . . Meltdown 1 | . . 1 . . . . . . Melee Attacks 6 | . . . 6 . . . . . Impact . | . . . . . . . . . Slashing 6 | . . . 6 . . . . . Piercing . | . . . . . . . . . Sneak Attacks 1 | . . . 1 . . . . . Combat Hostiles . | . . . . . . . . . Follow-up Attacks . | . . . . . . . . . Damage Inflicted 1986 | 96 372 105 228 69 . . 1116 . Guns 798 | 69 369 . 158 68 . . 134 . Cannons 319 | . . 105 18 . . . 196 . Explosions 811 | 25 . . . . . . 786 . Melee 52 | . . . 52 . . . . . Ramming 6 | 2 3 . . 1 . . . . Kinetic 306 | 16 16 . 158 50 . . 66 . Thermal 300 | 25 . 105 18 18 . . 134 . Explosive 786 | . . . . . . . 786 . Electromagnetic 476 | 53 353 . . . . . 70 . Impact 60 | . . . . . . . 60 . Slashing 52 | . . . 52 . . . . . Piercing . | . . . . . . . . . Highest Corruption 3 | . . . . . . . . 3 Average Corruption 2 | . . . . . . . . 2 Corruption Purged . | . . . . . . . . . Corruption Blocked . | . . . . . . . . . Effects 1 | . . . . . . . . 1 Message Errors 1 | . . . . . . . . 1 Overload Shots . | . . . . . . . . . Overflow Damage 6 | . . . . . . . 6 . Projectiles 6 | . . . . . . . 6 . Explosions . | . . . . . . . . . Melee . | . . . . . . . . . Knockbacks 1 | . . . . . . . 1 . Impact . | . . . . . . . . . Kinetic 1 | . . . . . . . 1 . Secondary . | . . . . . . . . . Self-Inflicted Damage . | . . . . . . . . . Shots . | . . . . . . . . . Rammed . | . . . . . . . . . Targets Rammed 3 | 1 1 . . 1 . . . . Kicked 3 | 1 1 . . 1 . . . . Crushed . | . . . . . . . . . Highest Temperature 204 | 20 162 204 59 . 32 . 93 . Average Temperature 48 | 13 54 66 15 . 18 . 52 . Received Heat Transfer 261 | . 30 45 162 . 24 . . . Siege Activations . | . . . . . . . . . Robots Corrupted . | . . . . . . . . . Combat Hostiles . | . . . . . . . . . Parts Fried . | . . . . . . . . . Impact Corruptions . | . . . . . . . . . Robots Melted 1 | . . 1 . . . . . . Combat Hostiles 1 | . . 1 . . . . . . Parts Melted 2 | . . 2 . . . . . . Heat Transferred 646 | 50 . 222 37 37 . . 300 . Parts Sabotaged . | . . . . . . . . . Parts Stolen . | . . . . . . . . . Parts Stripped . | . . . . . . . . . Power Chain Reactions 1 | 1 . . . . . . . . Alert | -11 -10 -9 -8 -7 -6 -5 -5 -4 ------- Run | Yrd Mat Mat Mat Fac Fac Fac DSF Fac Peak Influence 351 | 10 220 153 351 204 129 63 100 42 Initial 159 | . 6 46 64 159 99 63 44 27 Average 95 | 3 107 101 108 181 104 63 68 16 Maximum Alert Level 1 | . 1 . 1 1 . . . . Low Security (%) 90 | 100 79 100 88 78 100 100 100 100 Level 1 9 | . 20 . 11 21 . . . . Level 2 . | . . . . . . . . . Level 3 . | . . . . . . . . . Level 4 . | . . . . . . . . . Level 5 . | . . . . . . . . . High Security . | . . . . . . . . . Max Security . | . . . . . . . . . Squads Dispatched 8 | . 1 2 3 . . . 2 . Investigation 2 | . 1 . 1 . . . . . Extermination . | . . . . . . . . . Reinforcement 6 | . . 2 2 . . . 2 . Assault . | . . . . . . . . . Garrison . | . . . . . . . . . Intercept . | . . . . . . . . . Searches Triggered . | . . . . . . . . . Construction Impeded . | . . . . . . . . . Haulers Reinforced . | . . . . . . . . . Active Scanning Responses . | . . . . . . . . . Cargo Convoy Interrupts . | . . . . . . . . . Stealth | -11 -10 -9 -8 -7 -6 -5 -5 -4 --------- Run | Yrd Mat Mat Mat Fac Fac Fac DSF Fac Distress Signals 3 | . 1 . 2 . . . . . Communications Jammed . | . . . . . . . . . Distress Signals . | . . . . . . . . . Times Spotted 89 | . 15 7 48 2 1 . 10 6 Peak Tracking Total 19 | . 5 5 19 1 1 . 9 5 Tactical Retreats 8 | . 2 1 5 . . . . . Traps | -11 -10 -9 -8 -7 -6 -5 -5 -4 ------- Run | Yrd Mat Mat Mat Fac Fac Fac DSF Fac Traps Triggered . | . . . . . . . . . Indirectly . | . . . . . . . . . Trap Hack Attempts . | . . . . . . . . . Triggered . | . . . . . . . . . Disarmed . | . . . . . . . . . Reprogrammed . | . . . . . . . . . Reused . | . . . . . . . . . Traps Extracted . | . . . . . . . . . Installed . | . . . . . . . . . Triggered . | . . . . . . . . . Machines | -11 -10 -9 -8 -7 -6 -5 -5 -4 ---------- Run | Yrd Mat Mat Mat Fac Fac Fac DSF Fac Machines Disabled 2 | . 1 . 1 . . . . . Max in Single Turn 1 | . 1 . 1 . . . . . Machines Repaired . | . . . . . . . . . Machines Dismantled . | . . . . . . . . . Machines Sabotaged . | . . . . . . . . . Overloaded Fab Kills . | . . . . . . . . . Hacking | -11 -10 -9 -8 -7 -6 -5 -5 -4 --------- Run | Yrd Mat Mat Mat Fac Fac Fac DSF Fac Machines Accessed 7 | . 2 1 2 1 . 1 . . Terminals 6 | . 1 1 2 1 . 1 . . Fabricators . | . . . . . . . . . Repair Stations . | . . . . . . . . . Recycling Units 1 | . 1 . . . . . . . Scanalyzers . | . . . . . . . . . Garrison Access . | . . . . . . . . . Total Hacks 16 | . 7 2 5 1 . 1 . . Successful 8 | . 3 2 1 1 . 1 . . Failed 8 | . 4 . 4 . . . . . Catastrophic 2 | . . . 2 . . . . . Database Lockouts . | . . . . . . . . . Manual . | . . . . . . . . . Terminals 12 | . 3 2 5 1 . 1 . . Fabricators . | . . . . . . . . . Repair Stations . | . . . . . . . . . Recycling Units 4 | . 4 . . . . . . . Scanalyzers . | . . . . . . . . . Garrison Access . | . . . . . . . . . Terminal Hacks 5 | . . 2 1 1 . 1 . . Open DSF 1 | . . . . . . 1 . . Branch Access Points 1 | . . 1 . . . . . . Terminal Index 1 | . . . . 1 . . . . Locate Traps 1 | . . 1 . . . . . . Patrol Status 1 | . . . 1 . . . . . Fabricator Hacks . | . . . . . . . . . Repair Station Hacks . | . . . . . . . . . Recycling Unit Hacks 3 | . 3 . . . . . . . Process 1 | . 1 . . . . . . . Report Inventory 1 | . 1 . . . . . . . Retrieve Matter 1 | . 1 . . . . . . . Scanalyzer . | . . . . . . . . . Garrison Access Hacks . | . . . . . . . . . Unauthorized Hacks . | . . . . . . . . . Terminals . | . . . . . . . . . Fabricators . | . . . . . . . . . Repair Stations . | . . . . . . . . . Recycling Units . | . . . . . . . . . Scanalyzers . | . . . . . . . . . Garrison Access . | . . . . . . . . . Data Cores Recovered 1 | . . . 1 . . . . . Used . | . . . . . . . . . Hacking Detections 5 | . 2 1 2 . . . . . Full Trace Events 2 | . 1 . 1 . . . . . Feedback Events . | . . . . . . . . . Feedback Blocked . | . . . . . . . . . Robot Schematics Acquired . | . . . . . . . . . Robots Built . | . . . . . . . . . Authchips . | . . . . . . . . . Time . | . . . . . . . . . Total Robot Build Rating . | . . . . . . . . . Part Schematics Acquired . | . . . . . . . . . Parts Built . | . . . . . . . . . Authchips . | . . . . . . . . . Time . | . . . . . . . . . Total Part Build Rating . | . . . . . . . . . Parts Repaired . | . . . . . . . . . Time . | . . . . . . . . . Parts Recycled . | . . . . . . . . . Recycled Matter 149 | . 149 . . . . . . . Retrieved Matter 203 | . 203 . . . . . . . Retrieved Components . | . . . . . . . . . Parts Scanalyzed . | . . . . . . . . . Part Schematics Acquired . | . . . . . . . . . Parts Damaged . | . . . . . . . . . Bothacking | -11 -10 -9 -8 -7 -6 -5 -5 -4 ------------ Run | Yrd Mat Mat Mat Fac Fac Fac DSF Fac Used RIF Installer . | . . . . . . . . . Robots Hacked . | . . . . . . . . . Non-combat . | . . . . . . . . . Combat . | . . . . . . . . . Robot Hacks Applied . | . . . . . . . . . Relay Couplers Released . | . . . . . . . . . Fabnet Peak Effective % . | . . . . . . . . . Robots Rewired . | . . . . . . . . . Allies Hacked . | . . . . . . . . . Hacks Repelled . | . . . . . . . . . Allies | -11 -10 -9 -8 -7 -6 -5 -5 -4 -------- Run | Yrd Mat Mat Mat Fac Fac Fac DSF Fac Total Allies . | . . . . . . . . . Largest Group . | . . . . . . . . . Highest-Rated Group . | . . . . . . . . . Highest-Rated Ally . | . . . . . . . . . Total Orders . | . . . . . . . . . Ally Attacks . | . . . . . . . . . Total Damage . | . . . . . . . . . Kills . | . . . . . . . . . Allies Corrupted . | . . . . . . . . . Allies Melted . | . . . . . . . . . Intel | -11 -10 -9 -8 -7 -6 -5 -5 -4 ------- Run | Yrd Mat Mat Mat Fac Fac Fac DSF Fac Robot Analysis Total . | . . . . . . . . . Derelict Logs Recovered . | . . . . . . . . . Drone Launches . | . . . . . . . . . Drone Recoveries . | . . . . . . . . . Exploration | -11 -10 -9 -8 -7 -6 -5 -5 -4 ------------- Run | Yrd Mat Mat Mat Fac Fac Fac DSF Fac Turns Passed 2053 | 100 607 237 502 113 170 48 127 149 Spaces Moved 2182 | 65 517 326 532 136 216 115 175 100 Core 111 | 5 . . 1 4 3 . 8 90 Treads . | . . . . . . . . . Legs 466 | 60 316 . . 35 45 . . 10 Wheels . | . . . . . . . . . Hover 361 | . . . . . 79 115 167 . Flight 1244 | . 201 326 531 97 89 . . . Fastest Speed 34 | 50 37 34 34 37 34 40 40 50 Average Speed 57 | 114 87 34 34 61 60 40 47 86 Slowest Speed 200 | 120 120 34 150 130 150 40 60 200 Overloaded Moves . | . . . . . . . . . Propulsion Burnouts . | . . . . . . . . . Robots Hopped 12 | . 1 1 10 . . . . . Cave-ins Triggered . | . . . . . . . . . Exploration Rate (%) 27 | 4 61 21 52 6 5 3 93 6 Regions Visited 8 Branch Regions . Pre-discovered Areas . | . . . . . . . . . Known Exits Taken 2 | . . . . . 1 1 . . Unknown Exits Taken 5 | 1 1 1 1 1 . . . . Scrap Searched . | . . . . . . . . . Spaces Dug 16 | . . 5 11 . . . . . Terrain Destroyed 66 | 3 . 5 11 . . . 47 . Melee 5 | . . . 5 . . . . . Projectile 11 | . . 5 6 . . . . . AOE 50 | 3 . . . . . . 47 . Terrain Rammed . | . . . . . . . . . Walls Destroyed . | . . . . . . . . . Machines Disabled . | . . . . . . . . . Actions | -11 -10 -9 -8 -7 -6 -5 -5 -4 --------- Run | Yrd Mat Mat Mat Fac Fac Fac DSF Fac Total 2801 | 80 622 420 790 157 251 116 205 160 Wait 378 | 2 34 73 208 . 2 . 4 55 Move 2154 | 65 514 323 514 135 215 114 174 100 Hop 9 | . 1 1 7 . . . . . Pick Up 29 | 1 14 2 6 1 5 . . . Fast Attach 42 | 7 . . 7 4 8 . 11 5 Attach 19 | . 4 3 2 2 6 2 . . Detach 11 | . 3 . . 1 4 . 3 . Swap 20 | . 14 . 4 . 2 . . . Drop 27 | 1 9 . 8 2 6 . 1 . Fire 102 | 4 28 18 28 11 3 . 10 . Melee 6 | . . . 6 . . . . . Ram . | . . . . . . . . . Kick 2 | . 1 . . 1 . . . . Crush . | . . . . . . . . . Escape Stasis . | . . . . . . . . . Rewire 2 | . . . . . . . 2 . Trap . | . . . . . . . . . Miscellaneous . | . . . . . . . . . Route ------- -11/Scrapyard -10/Materials (discovered 3 exits: *Mat x2 / [*Min]) -9/Materials (discovered 3 exits: *Mat / Min x2) -8/Materials -7/Factory -6/Factory -5/Factory -5/DSF -4/Factory History --------- Turn | Location | Event 2 | -11/Scrapyard | Met Revision 17 7 | -11/Scrapyard | Discovered new exit (range 15) 101 | -11/Scrapyard | Entered Materials 267 | -10/Materials | Discovered new exit (range 5) 306 | -10/Materials | Build established: Mutant 431 | -10/Materials | Discovered new exit (range 7) 523 | -10/Materials | Discovered new exit (range 11) 708 | -10/Materials | Entered another Materials area 708 | -9/Materials | Evolved 2 slots: Propulsion x1, Utility x1 807 | -9/Materials | Identified exit to Mines 840 | -9/Materials | Build established: Scavenger-Mutant 938 | -9/Materials | Discovered new exit (range 9) 945 | -9/Materials | Entered another Materials area 945 | -8/Materials | Evolved 2 slots: Utility x2 1349 | -8/Materials | Lost 3 parts (1p1u1w) 1441 | -8/Materials | Discovered new exit (range 16) 1447 | -8/Materials | Entered Factory 1447 | -7/Factory | Evolved 2 slots: Propulsion x2 1498 | -7/Factory | Released all parts (7) 1540 | -7/Factory | Discovered new exit (range 12) 1560 | -7/Factory | Entered another Factory area 1560 | -6/Factory | Evolved 2 slots: Power x1, Weapon x1 1616 | -6/Factory | Build established: Mutant 1707 | -6/Factory | Discovered new exit (range 16) 1730 | -6/Factory | Identified exit to Factory 1730 | -6/Factory | Entered another Factory area 1730 | -5/Factory | Evolved 2 slots: Propulsion x1, Utility x1 1778 | -5/Factory | Identified exit to DSF 1778 | -5/Factory | Entered DSF 1797 | -5/DSF | Additional patrols routed to DSF 1898 | -5/DSF | Discovered new exit (range 14) 1905 | -5/DSF | Identified exit to Factory 1905 | -5/DSF | Entered Factory 1905 | -4/Factory | Evolved 2 slots: Utility x2 1933 | -4/Factory | Lost 12 parts (1p6n3u2w) 1986 | -4/Factory | Core integrity fell below 50% 2007 | -4/Factory | Core integrity fell below 20% 2027 | -4/Factory | Lost 6 parts (1p3n2u) 2054 | -4/Factory | Destroyed by S-27 Virus with Autogun Last Messages --------------- Adv. Signal Interpreter destroyed. Imp. VSS Leg destroyed. Chain reaction triggered in Lgt. Nuclear Core. S-27 Virus destroyed. P-70 Sage destroyed. S-27 Virus destroyed. R-10 Processor collects Imp. Heat Sink. R-10 Processor collects Tesla Rifle. R-10 Processor collects Hpw. Shock Rifle. U-05 Engineer lays Concrete. R-10 Processor collects Antigrav System. DRCX9>696&HUTKGBAG7&AI3W&VY L U-05 Engineer lays Concrete. R-10 Processor collects Autogun. U-05 Engineer lays Concrete. P-70 Sage resets S-27 Virus, system corruption cleaned. U-05 Engineer lays Concrete. ALERT: Security rotation in progress. U-05 Engineer lays Concrete. Map ----- +----------------------------------------------------+ | ???????????????????????????+ " " | | ???????????????? ??????????# % F | | ???????????????##+########## """"" """"" " | | ???????????????? !! % %"""""^""""" | | ??????????????? ! """ """ | | ??????????????? [ | | ???????????????? | | ?????????????#???""""""" | | ?????????????#! """"""" ##########+#### | | ??????????#### """"""" T#????????????? | | ????????? """"""" #????????????? | | ????????? ##????????????? | | ???????? #?????????????? | | ???????? ########+#?????????????? | | ???????? s#??????????????????????? | | ???????????#####+########s#??????????????????????? | | ????????????????????????# #??????????????????????? | | ????????????????????????# #??????????????????????? | | ????????????????????????# #??????????????????????? | | ????????????????????????# #??????????????????????? | | ????????????????""""????# #??????????????????????? | | ???????????# """""""??# #??????????????????????? | | ?????????????? # #??????????????????????? | | ?????????????????""""" + #??????????????????????? | | ?????????????????""""" #/########???????????????? | | ??????????????????""""??#@ #???????????????? | | ??????????????????""????# """ =#???????????????? | | ????????????????????????# """"" #???????????????? | | ????????????????????????# """"" #???????????????? | | ????????????????????????# ????????????????? | | ????????????????????????# """ ????????????????? | | ????????????????????????# """"" #???????????????? | | ????????????????????????# """????????????????????? | | ????????????????????????# ?????????????????????? | | ?????????????????????????##??????????????????????? | | ?????????????????????????????????????????????????? | | ?????????????????????????????????????????????????? | | ?????????????????????????????????????????????????? | | ?????????????????????????????????????????????????? | | ?????????????????????????????????????????????????? | | ?????????????????????????????????????????????????? | | ?????????????????????????????????????????????????? | | ?????????????????????????????????????????????????? | | ?????????????????????????????????????????????????? | | ?????????????????????????????????????????????????? | | ?????????????????????????????????????????????????? | | ?????????????????????????????????????????????????? | | ?????????????????????????????????????????????????? | | ?????????????????????????????????????????????????? | | ?????????????????????????????????????????????????? | +----------------------------------------------------+ Best States ------------- Heat Dissipation 43 Energy Generation 35 Energy Capacity 150 Matter Stores 400 Matter Capacity 400 Sight Range 16 Robot Scan Range 14 Terrain Scan Range 16 Terrain Scan Density 110 Power Amplification 20 Propulsion Shielding 66 Weapon Shielding 33 Point Defense Rating 160 Evasion (%) 65 Offensive Hacking 10 Defensive Hacking 10 Item Schematics ----------------- None Robot Schematics ------------------ None Fabricated ------------ Nothing Alien Tech Used ----------------- None Achievements -------------- Cya! Challenges ------------ None Game ------ Seed WaveAssaultDetonator Manual? 0 Play Time 01:08:43 Cumulative 5.1 hours Start 2024.04.01 @ 13:43:22 End 2024.04.01 @ 14:51:30 Sessions 1 Manual Loads 0 Difficulty Rogue Special Mode None Game No. 7 Rogue 7 Adventurer 0 Explorer 0 Win Type - Total 0 Types 0/0/0/0/0/0/0/0/0 Lore% 2 Gallery% 12 Achievement% 13 Wizard Run 0 Options --------- Layout 1 ASCII 0 Keyboard 0 Movement Numpad Keybinds 0 Fullscreen 1 Font 48/Proggy Map View 50x35 Zoom Use 0% Tactical HUD 0 Map Filters NONE Filters NONE Steam 1 RUN: 04404de2-c75f-4051-a95b-cb7afe815069